bitfinex-derivatives/quotes_SOLF0:USTF0_20250415
["timestamp","ask_amount","ask_price","bid_price","bid_amount"]
[1744697821646,4.74762244,131.03,130.99,585.2752]
[1744697821953,4.74762244,131.01,131.0,0.05689638]
[1744697822148,4.74762244,131.01,130.99,28.08]
[1744697822352,4.74762244,131.01,130.99,28.13462419]
[1744697822950,4.74762244,131.01,130.99,0.05462419]
[1744697823257,15.06217151,131.0,130.99,0.05462419]
[1744697823756,7.6349,131.0,130.99,0.05462419]
[1744697824558,7.637,130.97,130.94,2.099]
[1744697824857,7.42727151,131.0,130.94,2.099]
[1744697825052,7.42727151,131.0,130.94,9.7374]
[1744697825654,0.05065484,130.98,130.96,0.05235782]
[1744697826455,7.6367,130.97,130.96,0.05235782]
[1744697827557,7.6388,130.94,130.91,2.076]
[1744697828657,7.69067812,130.94,130.91,2.13264223]
[1744697829653,0.05187812,130.94,130.91,9.77284223]
[1744697830957,0.05187812,130.94,130.92,7.6394]
[1744697832457,0.05187812,130.94,130.91,9.77254223]
[1744697832849,0.05187812,130.94,130.91,2.13264223]
[1744697833045,7.69057812,130.94,130.91,2.13264223]
[1744697834157,7.69057812,130.94,130.91,9.77274223]
[1744697835559,0.05187812,130.94,130.91,9.77274223]
[1744697835854,9.49627151,131.0,130.92,7.42727151]
[1744697836059,7.634,131.02,130.96,7.42727151]
[1744697836265,7.634,131.02,130.99,7.6354]
[1744697837062,7.686983,131.02,130.99,7.68720316]
[1744697837860,0.052983,131.02,130.99,7.68720316]
[1744697838361,0.052983,131.02,130.99,0.05180316]
[1744697838557,7.6349,131.0,130.99,0.05180316]
[1744697839459,35.50727151,131.01,130.93,2.0575]
[1744697839762,7.42727151,130.98,130.92,30.1504]
[1744697839959,7.6364,130.98,130.92,30.1504]
[1744697840262,7.42727151,131.0,130.92,30.1504]
[1744697840561,0.05775372,130.97,130.95,0.05321205]
[1744697841159,7.6372,130.96,130.95,0.05321205]
[1744697841463,0.05775372,130.97,130.95,0.05321205]
[1744697843163,7.69445372,130.97,130.95,0.05321205]
[1744697843964,0.05775372,130.97,130.95,0.05321205]
[1744697844269,0.05775372,130.97,130.96,7.6372]
[1744697844570,37.59287151,131.04,130.95,35.56048356]
[1744697844861,37.59287151,131.04,130.99,7.6355]
[1744697845267,7.6333,131.03,130.99,7.6355]
[1744697845659,28.08,131.04,131.0,0.05059628]
[1744697845868,0.05411591,131.02,131.0,0.05059628]
[1744697846365,7.68791591,131.02,131.0,0.05059628]
[1744697847870,0.05411591,131.02,131.0,0.05059628]
[1744697848370,0.05411591,131.02,131.01,7.6343]
[1744697848670,30.1656,131.08,131.01,35.50727151]
[1744697848966,7.6317,131.06,131.02,7.6336]
[1744697849771,0.05794748,131.05,131.03,0.0538306]
[1744697850468,0.05794748,131.05,131.03,7.6869306]
[1744697850665,0.05794748,131.05,131.03,0.0538306]
[1744697851170,7.48521899,131.05,131.03,0.0538306]
[1744697851367,0.05794748,131.05,131.03,0.0538306]
[1744697852271,7.6326,131.04,131.03,0.0538306]
[1744697853170,7.69014748,131.05,131.03,0.0538306]
[1744697853471,0.05794748,131.05,131.03,0.0538306]
[1744697854374,7.6326,131.04,131.03,0.0538306]
[1744697860078,7.6326,131.04,131.03,3.06e-05]
[1744697871890,9.47171899,131.05,130.98,28.08]
[1744697872193,7.42727151,131.02,130.98,28.08]
[1744697872594,7.6353,131.0,130.98,28.08]
[1744697873095,7.69253208,131.0,130.98,28.12823144]
[1744697874792,7.6355,130.99,130.98,28.12823144]
[1744697878306,0.05723208,131.0,130.98,35.76433144]
[1744697879696,7.69213208,131.0,130.98,35.76433144]
[1744697880601,7.69213208,131.0,130.98,28.12823144]
[1744697881303,28.08,131.06,130.98,35.55550295]
[1744697881607,9.49827151,131.08,130.98,35.55550295]
[1744697881608,28.06,131.09,131.02,7.42727151]
[1744697881797,7.6318,131.06,131.03,35.6929]
[1744697882203,28.06,131.09,131.03,28.06]
[1744697882501,7.68590967,131.07,131.05,0.05284767]
[1744697882900,0.05480967,131.07,131.05,0.05284767]
[1744697883204,7.6314,131.06,131.05,0.05284767]
[1744697886206,7.6334,131.03,131.0,28.06]
[1744697886511,7.42727151,131.06,131.0,28.06]
[1744697886808,7.6349,131.0,130.97,28.06]
[1744697887297,0.05730959,131.0,130.97,28.11170234]
[1744697888002,0.05730959,131.0,130.97,35.74810234]
[1744697888604,0.05730959,131.0,130.98,7.6361]
[1744697888806,35.48727151,131.06,130.98,7.42727151]
[1744697889004,28.06,131.06,130.99,3.9978]
[1744697889205,11.67767151,131.08,131.0,35.48727151]
[1744697889206,7.42727151,131.08,131.0,35.48727151]
[1744697889701,7.6314,131.06,131.0,35.48727151]
[1744697889902,0.0492288,131.04,131.02,0.05234167]
[1744697890405,0.0492288,131.04,131.02,7.68584167]
[1744697892708,0.0492288,131.04,131.03,7.6332]
[1744697892906,0.0492288,131.04,131.03,35.6932]
[1744697893106,28.06,131.09,131.03,35.6932]
[1744697894107,7.6313,131.07,131.04,7.6324]
[1744697894307,7.68120859,131.07,131.05,0.05650052]
[1744697894507,0.04990859,131.07,131.05,0.05650052]
[1744697894801,0.04990859,131.07,131.05,7.68820052]
[1744697896107,0.04990859,131.07,131.06,7.6314]
[1744697896406,0.04990859,131.07,131.05,0.05650052]
[1744697896809,0.04990859,131.07,131.05,7.68820052]
[1744697898208,0.04990859,131.07,131.06,7.6314]
[1744697898512,0.04990859,131.07,131.06,35.6714]
[1744697899515,7.42727151,131.13,131.08,7.6298]
[1744697899715,35.46727151,131.15,131.06,35.46727151]
[1744697900210,7.6276,131.13,131.06,35.46727151]
[1744697900710,0.04911948,131.11,131.08,7.48188641]
[1744697900914,7.42727151,131.16,131.09,32.1888]
[1744697901309,7.42727151,131.16,131.1,7.6288]
[1744697901610,7.42727151,131.16,131.09,32.1888]
[1744697901810,7.42727151,131.14,131.09,32.1888]
[1744697902112,7.6281,131.12,131.11,0.05353247]
[1744697902312,7.42727151,131.12,131.06,28.04]
[1744697902712,7.6301,131.09,131.06,28.04]
[1744697903107,7.6293,131.1,131.06,28.04]
[1744697903614,0.05018816,131.09,131.07,0.0495691]
[1744697904415,7.68028816,131.09,131.07,0.0495691]
[1744697905417,7.6303,131.08,131.07,0.0495691]
[1744697909121,7.6326,131.04,131.03,30.0944]
[1744697910116,7.68790669,131.05,131.03,30.0944]
[1744697910322,0.05570669,131.05,131.03,30.0944]
[1744697912022,0.05570669,131.05,131.03,37.7274]
[1744697913228,0.05570669,131.05,131.04,7.6326]
[1744697915926,0.05570669,131.05,131.03,30.0944]
[1744697917526,0.05570669,131.05,131.03,37.7272]
[1744697918528,2.1595,131.1,131.03,30.0944]
[1744697918721,28.04,131.11,131.04,7.42727151]
[1744697919031,7.42727151,131.12,131.04,7.42727151]
[1744697919331,7.42727151,131.12,131.05,2.0264]
[1744697919629,7.42727151,131.12,131.05,30.0664]
[1744697919821,0.0516124,131.1,131.07,0.05731807]
[1744697920232,7.6297,131.09,131.07,0.05731807]
[1744697921728,0.0516124,131.1,131.07,0.05731807]
[1744697921923,0.0516124,131.1,131.08,28.04]
[1744697922430,0.0516124,131.1,131.08,35.67]
[1744697922627,0.0516124,131.1,131.08,28.04]
[1744697923032,0.0516124,131.1,131.09,7.6297]
[1744697924132,0.0516124,131.1,131.08,39.6392]
[1744697924931,0.0516124,131.1,131.08,37.6785]
[1744697925731,0.0516124,131.1,131.09,7.6297]
[1744697929040,7.627,131.14,131.11,7.6281]
[1744697929339,7.627,131.14,131.11,35.6681]
[1744697929739,7.42727151,131.18,131.11,28.04]
[1744697930138,0.05691922,131.15,131.13,0.05290607]
[1744697930634,7.68341922,131.15,131.13,0.05290607]
[1744697932138,0.05691922,131.15,131.13,0.05290607]
[1744697932837,0.05691922,131.15,131.14,7.6268]
[1744697933236,0.05691922,131.15,131.13,7.68020607]
[1744697934340,0.05691922,131.15,131.14,43.07407151]
[1744697934639,7.42727151,131.23,131.14,35.44727151]
[1744697934939,7.6238,131.2,131.16,7.6253]
[1744697935641,0.04893452,131.19,131.17,0.0584595]
[1744697937939,7.67283452,131.19,131.17,0.0584595]
[1744697942440,0.04893452,131.19,131.17,28.0784595]
[1744697944145,7.67313452,131.19,131.17,28.0784595]
[1744697945346,7.6244,131.18,131.17,28.0784595]
[1744697946045,7.67293452,131.19,131.17,28.0784595]
[1744697946344,0.04893452,131.19,131.17,28.0784595]
[1744697947747,7.67293452,131.19,131.17,28.0784595]
[1744697948444,7.6244,131.18,131.17,28.0784595]
[1744697950847,12.36313729,131.18,131.17,0.0584595]
[1744697951151,40.37873729,131.18,131.08,28.02]
[1744697951448,7.6266,131.15,131.11,4.73873729]
[1744697951651,7.6266,131.15,131.11,32.75873729]
[1744697951850,7.6266,131.15,131.11,40.38693729]
[1744697952050,7.67802861,131.14,131.12,0.05037749]
[1744697952351,4.73873729,131.13,131.12,0.05037749]
[1744697952553,7.629,131.11,131.08,28.02]
[1744697952850,12.36773729,131.11,131.08,28.02]
[1744697953051,4.73873729,131.11,131.08,28.02]
[1744697953250,7.4129377,131.13,131.08,35.6498]
[1744697953451,7.4129377,131.13,131.08,28.02]
[1744697953646,7.4129377,131.13,131.09,0.04842982]
[1744697953647,0.0503163,131.12,131.09,0.04842982]
[1744697954049,7.6786163,131.12,131.09,0.04842982]
[1744697954848,0.0503163,131.12,131.09,0.04842982]
[1744697955253,0.0503163,131.12,131.1,7.6287]
[1744697955751,0.0503163,131.12,131.09,9.73702982]
[1744697956755,0.0503163,131.12,131.1,7.6289]
[1744697958159,7.6783163,131.12,131.09,2.10762982]
[1744697958758,0.0503163,131.12,131.09,2.10762982]
[1744697959352,0.0503163,131.12,131.09,9.73682982]
[1744697959353,7.6786163,131.12,131.09,9.73682982]
[1744697963462,0.0503163,131.12,131.1,7.6287]
[1744697965560,7.6274,131.13,131.1,7.6287]
[1744697965859,7.627,131.14,131.11,7.6285]
[1744697966661,7.68342865,131.14,131.11,7.6780533]
[1744697967359,7.68342865,131.14,131.12,7.6278]
[1744697967562,7.68342865,131.14,131.11,28.0695533]
[1744697967762,7.6274,131.13,131.11,35.6977533]
[1744697967961,0.05642865,131.14,131.11,28.0695533]
[1744697968260,7.6279,131.13,131.11,28.0695533]
[1744697971063,7.6279,131.12,131.11,28.0695533]
[1744697971259,7.6279,131.12,131.11,0.0495533]
[1744697973761,28.02,131.12,131.05,28.02]
[1744697974064,28.02,131.12,131.04,35.4329377]
[1744697974463,7.6294,131.1,131.06,7.6312]
[1744697974764,0.05286234,131.09,131.07,0.0499209]
[1744697975063,7.6303,131.08,131.07,0.0499209]
[1744697978564,7.68286234,131.09,131.07,0.0499209]
[1744697984967,7.6303,131.08,131.07,0.0499209]
[1744697986270,7.68286234,131.09,131.07,0.0499209]
[1744697988070,7.6303,131.08,131.07,0.0499209]
[1744697989067,7.68286234,131.09,131.07,0.0499209]
[1744697990468,0.05286234,131.09,131.07,0.0499209]
[1744697990671,0.05286234,131.09,131.08,4.7452774]
[1744697990871,0.05286234,131.09,131.07,4.7951983]
[1744697991270,7.68256234,131.09,131.07,4.7951983]
[1744697991571,7.68256234,131.09,131.07,0.0499209]
[1744697992574,7.6303,131.08,131.07,0.0499209]
[1744697992773,0.05286234,131.09,131.07,0.0499209]
[1744697993175,12.3755774,131.08,131.07,0.0499209]
[1744697998480,7.6303,131.08,131.07,0.0499209]
[1744698001878,7.68286234,131.09,131.07,0.0499209]
[1744698002378,7.6303,131.08,131.07,0.0499209]
[1744698004878,12.3755774,131.08,131.07,0.0499209]
[1744698008586,7.6303,131.08,131.07,0.0499209]
[1744698008888,0.05286234,131.09,131.07,0.0499209]
[1744698009385,7.6303,131.08,131.07,0.0499209]
[1744698009886,12.3755774,131.08,131.07,0.0499209]
[1744698011386,7.6303,131.08,131.07,0.0499209]
[1744698015686,12.3755774,131.08,131.07,0.0499209]
[1744698016692,7.633,131.04,131.01,28.02]
[1744698016893,4.7452774,131.06,131.01,32.7652774]
[1744698017191,4.7452774,131.06,131.02,4.7452774]
[1744698017794,0.0587286,131.05,131.03,0.05238084]
[1744698018194,7.6910286,131.05,131.03,0.05238084]
[1744698018796,0.0587286,131.05,131.03,12.43075824]
[1744698019290,0.0587286,131.05,131.04,40.3978774]
[1744698019597,4.7452774,131.1,131.05,4.7452774]
[1744698019999,32.7652774,131.12,131.07,4.7452774]
[1744698020392,7.63,131.09,131.08,0.04949547]
[1744698022795,12.3752774,131.09,131.08,0.04949547]
[1744698027399,12.3752774,131.09,131.08,9.547e-05]
[1744698027900,7.6328,131.04,131.01,14.4252774]
[1744698028106,4.7452774,131.05,131.01,30.0659]
[1744698028704,7.633,131.04,131.01,30.0659]
[1744698029003,7.633,131.04,131.01,30.12154582]
[1744698029307,7.68936787,131.04,131.01,30.12154582]
[1744698029606,7.68936787,131.04,131.01,37.75584582]
[1744698029807,7.68936787,131.04,131.01,42.50112322]
[1744698031805,7.68936787,131.04,131.01,30.12154582]
[1744698032010,4.80164527,131.04,131.01,28.07564582]
[1744698032406,4.80164527,131.04,131.01,0.05564582]
[1744698032407,7.6337,131.02,131.01,0.05564582]
[1744698032601,12.3789774,131.02,131.01,0.05564582]
[1744698033214,4.7452774,131.02,130.95,34.8806774]
[1744698033508,4.7452774,131.0,130.95,32.7652774]
[1744698034113,7.6358,130.99,130.95,40.4027774]
[1744698034306,0.05141562,130.98,130.96,0.05723199]
[1744698035017,0.05141562,130.98,130.97,4.7452774]
[1744698035214,4.7452774,131.06,131.01,4.7452774]
[1744698035509,7.6325,131.05,131.01,12.3792774]
[1744698036311,0.04926666,131.04,131.02,0.05578411]
[1744698038815,7.68186666,131.04,131.02,0.05578411]
[1744698039214,7.6332,131.03,131.02,0.05578411]
[1744698039515,4.79454406,131.04,131.02,0.05578411]
[1744698040017,12.42764406,131.04,131.02,0.05578411]
[1744698040619,7.6332,131.03,131.02,0.05578411]
[1744698041716,12.3784774,131.03,131.02,0.05578411]
[1744698046923,7.6343,131.02,130.98,7.6359]
[1744698047123,12.3795774,131.02,130.98,7.6359]
[1744698048124,0.05488219,131.01,130.99,0.05804653]
[1744698049320,0.05488219,131.01,130.99,4.80332393]
[1744698049724,0.05488219,131.01,130.99,0.05804653]
[1744698049920,0.05488219,131.01,130.99,4.80332393]
[1744698050119,0.05488219,131.01,130.99,12.43862393]
[1744698050423,0.05488219,131.01,130.99,0.05804653]
[1744698051327,4.7452774,131.0,130.99,0.05804653]
[1744698052225,12.3801774,131.0,130.99,0.05804653]
[1744698054128,4.7452774,131.0,130.94,28.02]
[1744698054327,4.7452774,130.97,130.94,28.02]
[1744698055226,4.7452774,130.97,130.94,28.07349973]
[1744698055423,7.6378,130.95,130.94,0.05349973]
[1744698055628,12.3830774,130.95,130.94,0.05349973]
[1744698056125,0.05573558,130.97,130.94,0.05349973]
[1744698056126,12.3827774,130.96,130.94,0.05349973]
[1744698056327,7.6375,130.96,130.94,0.05349973]
[1744698056726,7.6378,130.95,130.94,0.05349973]
[1744698057027,12.3830774,130.95,130.94,0.05349973]
[1744698057226,7.6378,130.95,130.94,0.05349973]
[1744698058228,12.3830774,130.95,130.94,0.05349973]
[1744698060130,7.6399,130.92,130.9,2.0319]
[1744698061330,7.69024194,130.92,130.9,2.08287605]
[1744698061730,0.05034194,130.92,130.9,6.82815345]
[1744698062031,4.7452774,130.95,130.9,4.79625345]
[1744698062227,4.7452774,130.94,130.9,0.05097605]
[1744698063127,4.80406704,130.93,130.9,0.05097605]
[1744698063428,4.7452774,130.91,130.9,0.05097605]
[1744698063630,4.7452774,130.91,130.86,2.0878]
[1744698063830,4.7452774,130.89,130.86,2.0878]
[1744698064231,12.3868774,130.89,130.86,2.0878]
[1744698064732,7.6419,130.88,130.86,2.14617776]
[1744698065031,4.79455122,130.89,130.86,2.14617776]
[1744698065230,7.6419,130.88,130.86,0.05837776]
[1744698065632,0.04927382,130.89,130.86,0.05837776]
[1744698065832,7.6419,130.88,130.86,0.05837776]
[1744698066031,7.48767992,130.89,130.86,0.05837776]
[1744698066733,7.6425,130.87,130.86,0.05837776]
[1744698067336,7.4384061,130.87,130.82,28.02]
[1744698068038,7.6446,130.84,130.82,28.02]
[1744698068241,7.4384061,130.85,130.82,28.02]
[1744698068433,7.4384061,130.85,130.82,0.05211675]
[1744698068434,7.48816533,130.85,130.82,0.05211675]
[1744698069039,7.6452,130.83,130.82,0.05211675]
[1744698069738,7.6445,130.84,130.82,0.05211675]
[1744698069940,0.04975923,130.85,130.82,0.05211675]
[1744698071338,7.48816533,130.85,130.82,0.05211675]
[1744698071741,7.6448,130.83,130.82,0.05211675]
[1744698072631,7.6465,130.81,130.79,28.04]
[1744698073232,7.4384061,130.85,130.79,28.04]
[1744698073548,7.4384061,130.87,130.79,29.9975]
[1744698073839,35.4784061,130.91,130.84,7.4384061]
[1744698074139,28.04,130.91,130.85,2.0606]
[1744698074339,7.6411,130.9,130.86,7.6427]
[1744698074539,28.04,130.91,130.85,2.0606]
[1744698074739,7.6416,130.89,130.85,9.7039]
[1744698074937,7.69261794,130.89,130.87,0.04853749]
[1744698075136,0.05101794,130.89,130.87,0.04853749]
[1744698075947,7.69251794,130.89,130.87,28.08853749]
[1744698076144,0.05101794,130.89,130.87,28.08853749]
[1744698076340,28.04,130.94,130.87,28.08853749]
[1744698076545,7.6391,130.93,130.88,9.5958061]
[1744698076941,7.4384061,130.95,130.88,2.1574]
[1744698077141,7.641,130.9,130.88,2.1574]
[1744698077345,7.4384061,130.95,130.88,2.1574]
[1744698077547,0.05780736,130.9,130.88,2.20776584]
[1744698077746,0.04850344,130.9,130.88,9.84966584]
[1744698078246,0.04850344,130.9,130.88,2.20776584]
[1744698078447,0.04850344,130.9,130.88,0.05036584]
[1744698079347,7.68940344,130.9,130.88,0.05036584]
[1744698079847,0.04850344,130.9,130.88,0.05036584]
[1744698080545,28.04,130.96,130.88,7.48877194]
[1744698080746,28.04,130.96,130.88,9.5979061]
[1744698081251,7.6394,130.93,130.89,7.641]
[1744698081546,0.05550923,130.92,130.9,0.05136493]
[1744698082351,7.69510923,130.92,130.9,0.05136493]
[1744698083049,0.05550923,130.92,130.9,0.05136493]
[1744698084753,7.69520923,130.92,130.9,0.05136493]
[1744698086657,0.05550923,130.92,130.9,7.69196493]
[1744698087154,0.05550923,130.92,130.9,35.73196493]
[1744698087656,28.04,130.96,130.9,28.09136493]
[1744698087856,7.4384061,130.97,130.9,28.09136493]
[1744698088052,28.02,130.98,130.9,35.52977103]
[1744698088252,28.02,130.98,130.92,7.6393]
[1744698088253,7.6376,130.96,130.92,7.6393]
[1744698088653,7.6376,130.96,130.9,35.4784061]
[1744698088949,0.05277482,130.95,130.93,0.04860173]
[1744698090051,0.05277482,130.95,130.93,7.68720173]
[1744698090354,0.05277482,130.95,130.93,28.06860173]
[1744698090957,7.6384,130.94,130.93,0.04860173]
[1744698091149,35.4584061,130.94,130.84,33.4827298]
[1744698091353,7.4384061,130.91,130.84,32.0851]
[1744698091959,7.6417,130.89,130.85,7.6435]
[1744698092256,0.0564951,130.89,130.87,0.05656937]
[1744698092462,28.02,130.94,130.87,35.51497547]
[1744698092662,7.4384061,130.95,130.87,35.51497547]
[1744698092957,7.4384061,130.95,130.88,9.6394]
[1744698093459,7.6399,130.92,130.9,0.05627978]
[1744698094159,0.05342433,130.93,130.9,0.05627978]
[1744698094363,28.75188,131.0,130.91,7.4384061]
[1744698094667,28.75188,131.0,130.94,7.4384061]
[1744698094963,7.6358,130.99,130.95,35.6578]
[1744698095160,28.75188,131.0,130.95,28.02]
[1744698095362,0.04989169,130.99,130.98,7.4384061]
[1744698095663,28.75188,131.0,130.98,35.4584061]
[1744698096063,28.75188,131.0,130.98,28.02]
[1744698096262,36.38718,131.0,130.98,28.02]
[1744698096662,36.43879056,131.0,130.98,28.02]
[1744698097465,7.6355,130.99,130.98,28.02]
[1744698098666,28.80349056,131.0,130.98,28.02]
[1744698098866,35.4584061,131.08,130.98,35.4584061]
[1744698099070,7.4384061,131.06,130.99,1.9861]
[1744698100070,0.05359628,131.04,131.01,0.04974795]
[1744698100870,7.6332,131.03,131.01,0.04974795]
[1744698101273,7.6332,131.03,131.01,28.06974795]
[1744698102373,0.05359628,131.04,131.01,28.06974795]
[1744698103375,7.6332,131.03,131.01,28.06974795]
[1744698104175,7.6337,131.02,131.01,28.06974795]
[1744698107276,7.6334,131.03,131.01,28.06974795]
[1744698108180,7.6337,131.02,131.01,28.06974795]
[1744698111282,0.05359628,131.04,131.01,28.06974795]
[1744698111782,7.6332,131.03,131.01,28.06974795]
[1744698112880,7.6337,131.02,131.01,28.06974795]
[1744698113279,7.6337,131.02,131.01,0.04974795]
[1744698117386,7.6336,131.03,131.01,0.04974795]
[1744698117686,0.05359628,131.04,131.01,28.20974795]
[1744698121489,7.6333,131.03,131.01,28.20974795]
[1744698121885,0.05359628,131.04,131.01,28.20974795]
[1744698122290,7.6337,131.02,131.01,0.04974795]
[1744698127489,7.6333,131.03,131.01,0.04974795]
[1744698127892,7.6333,131.03,131.01,28.20974795]
[1744698128792,0.05359628,131.04,131.01,28.20974795]
[1744698129993,7.6337,131.02,131.01,28.20974795]
[1744698132197,9.4664061,131.03,130.98,28.16]
[1744698132498,2.028,131.03,130.98,28.16]
[1744698132800,7.6341,131.02,130.99,7.6351]
[1744698133299,7.6919318,131.02,130.99,7.68861965]
[1744698133695,7.6344,131.01,130.99,0.05351965]
[1744698133895,0.0578318,131.02,130.99,0.05351965]
[1744698134500,7.4384061,131.01,130.98,28.16]
[1744698134700,7.4384061,131.01,130.95,56.686]
[1744698135102,7.637,130.97,130.95,56.686]
[1744698135401,35.5984061,131.01,130.95,56.686]
[1744698135802,0.04822139,130.99,130.97,0.05511111]
[1744698136200,7.68402139,130.99,130.97,0.05511111]
[1744698136395,0.04822139,130.99,130.97,0.05511111]
[1744698136901,0.04822139,130.99,130.98,28.16]
[1744698138496,0.04822139,130.99,130.98,35.7961]
[1744698139613,7.4384061,131.06,131.0,7.6346]
[1744698139903,7.6332,131.03,131.0,7.6346]
[1744698140702,7.68882457,131.03,131.0,7.68411714]
[1744698141999,0.05562457,131.03,131.02,7.6337]
[1744698142205,4.3319,131.09,131.01,30.0197]
[1744698142394,4.3319,131.09,131.01,32.1907]
[1744698143003,7.6312,131.07,131.03,7.6329]
[1744698143198,4.3319,131.09,131.04,28.0]
[1744698143400,0.05745928,131.06,131.04,28.0566144]
[1744698143602,7.68915928,131.06,131.04,28.0566144]
[1744698144604,0.05745928,131.06,131.04,35.6891144]
[1744698146704,0.05745928,131.06,131.05,7.632]
[1744698147003,9.5925061,131.12,131.05,7.4384061]
[1744698147205,7.4384061,131.15,131.09,7.6294]
[1744698147407,7.4384061,131.15,131.09,35.6294]
[1744698147602,7.6276,131.13,131.09,35.6294]
[1744698148002,0.05554961,131.12,131.1,0.04850087]
[1744698148998,7.68364961,131.12,131.1,0.04850087]
[1744698149201,0.05554961,131.12,131.1,0.04850087]
[1744698149403,7.6285,131.11,131.1,0.04850087]
[1744698150009,7.68374961,131.12,131.1,0.04850087]
[1744698150306,0.05554961,131.12,131.1,0.04850087]
[1744698150707,0.05554961,131.12,131.1,7.67730087]
[1744698150908,0.05554961,131.12,131.1,0.04850087]
[1744698152210,7.6285,131.11,131.1,0.04850087]
[1744698153106,7.68374961,131.12,131.1,0.04850087]
[1744698153510,7.6285,131.11,131.1,0.04850087]
[1744698154509,7.68374961,131.12,131.1,0.04850087]
[1744698154710,0.05554961,131.12,131.1,0.04850087]
[1744698155914,0.05554961,131.12,131.1,2.10170087]
[1744698156111,0.05554961,131.12,131.1,9.73040087]
[1744698156312,2.1541,131.17,131.1,9.54010697]
[1744698156509,7.6265,131.15,131.11,7.6281]
[1744698156805,7.6265,131.15,131.12,28.0]
[1744698157512,7.68119079,131.15,131.12,28.05104989]
[1744698157712,0.05469079,131.15,131.12,28.05104989]
[1744698159013,7.6268,131.14,131.12,28.05104989]
[1744698159512,0.05469079,131.15,131.12,28.05104989]
[1744698159713,7.6271,131.14,131.12,28.05104989]
[1744698160422,7.6273,131.13,131.12,28.05104989]
[1744698160614,7.6273,131.13,131.12,0.05104989]
[1744698164816,7.6303,131.08,131.07,30.0401]
[1744698165115,7.6303,131.08,131.07,27.98]
[1744698165719,7.4384061,131.09,131.06,0.0563014]
[1744698166021,7.49147512,131.09,131.06,0.0563014]
[1744698166624,7.6308,131.07,131.06,0.0563014]
[1744698167118,15.0692061,131.07,131.06,0.0563014]
[1744698168127,7.6332,131.03,131.01,577.1]
[1744698168327,7.4384061,131.05,131.01,27.98]
[1744698168524,7.6329,131.04,131.01,27.98]
[1744698169026,7.69130175,131.04,131.01,28.02875528]
[1744698169623,0.05840175,131.04,131.01,35.66305528]
[1744698169817,0.05840175,131.04,131.01,28.02875528]
[1744698170224,0.05840175,131.04,131.02,9.6582]
[1744698170423,0.05840175,131.04,131.02,2.0245]
[1744698171518,7.69110175,131.04,131.02,2.0245]
[1744698172727,7.6332,131.03,131.02,2.0245]
[1744698173933,7.6337,131.02,131.01,28.02875528]
[1744698175328,0.05840175,131.04,131.01,28.02875528]
[1744698176033,0.05840175,131.04,131.02,4.1168]
[1744698176631,0.05840175,131.04,131.03,7.6332]
[1744698180237,0.05840175,131.04,131.02,11.7504]
[1744698180537,0.05840175,131.04,131.01,28.02875528]
[1744698181140,0.05840175,131.04,131.02,2.0877]
[1744698181538,0.05840175,131.04,131.03,7.6332]
[1744698182440,0.05840175,131.04,131.02,9.7211]
[1744698182640,0.05840175,131.04,131.02,2.0877]
[1744698182942,0.05840175,131.04,131.01,0.04875528]
[1744698183136,7.6337,131.02,131.01,0.04875528]
[1744698185039,7.6334,131.03,131.01,0.04875528]
[1744698185239,0.05840175,131.04,131.01,0.04875528]
[1744698185637,7.6332,131.03,131.01,0.04875528]
[1744698186139,0.05840175,131.04,131.01,0.04875528]
[1744698187249,7.6337,131.02,131.01,0.04875528]
[1744698192156,7.6362,130.98,130.96,32.2278]
[1744698192353,7.4384061,131.01,130.96,32.2278]
[1744698193056,0.05023633,131.0,130.97,0.05418953]
[1744698193557,7.6361,130.98,130.97,0.05418953]
[1744698193757,0.05023633,131.0,130.97,0.05418953]
[1744698195761,0.05023633,131.0,130.98,7.6358]
[1744698195959,0.05023633,131.0,130.99,28.0]
[1744698196456,7.68513633,131.0,130.99,28.0]
[1744698197664,0.05023633,131.0,130.99,35.6355]
[1744698197965,9.5680061,131.06,130.99,28.0]
[1744698198567,7.6329,131.04,131.01,7.634]
[1744698198767,2.1296,131.06,130.99,28.0]
[1744698199063,0.0481974,131.04,131.02,35.6333]
[1744698199263,0.0481974,131.04,131.02,28.0]
[1744698199963,0.0481974,131.04,131.02,35.6334]
[1744698202264,0.0481974,131.04,131.02,28.0]
[1744698204065,7.6809974,131.04,131.02,28.0]
[1744698205167,0.0481974,131.04,131.02,28.0]
[1744698205766,7.6808974,131.04,131.02,28.0]
[1744698206068,0.0481974,131.04,131.02,28.0]
[1744698207163,0.0481974,131.04,131.02,35.6336]